[Event "The Elitserien 2024/25: round 1 - 3"]
[Site "Scandic Infra City, Kanalvagen 10, Upplands Vasby, Sweden"]
[Date "2024.10.04"]
[Round "1.14"]
[White "Ostlund, Joar"]
[Black "Rajcevski, Dejan"]
[Result "1-0"]
[TimeControl "90 minutes for 40 moves + 30 minutes for the rest of the game + 30 seconds per move from move one."]
[WhiteTitle "FM"]
[WhiteFideId "1735020"]
[BlackFideId "1759027"]
[WhiteElo "2335"]
[BlackElo "2131"]

1. d4 {[%clk 01:30:27]} {[%emt 00:00:33]} d5 {[%clk 01:30:13]} {[%emt
00:00:47]} 2. c4 {[%clk 01:30:46]} {[%emt 00:00:11]} e6 {[%clk 01:30:36]}
{[%emt 00:00:08]} 3. Nc3 {[%clk 01:30:46]} {[%emt 00:00:29]} Nf6 {[%clk
01:30:20]} {[%emt 00:00:46]} 4. cxd5 {[%clk 01:30:48]} {[%emt 00:00:27]} exd5
{[%clk 01:30:02]} {[%emt 00:00:49]} 5. Bg5 {[%clk 01:31:10]} {[%emt 00:00:08]}
Be7 {[%clk 01:29:59]} {[%emt 00:00:33]} 6. e3 {[%clk 01:31:32]} {[%emt
00:00:08]} c6 {[%clk 01:29:09]} {[%emt 00:01:20]} 7. Bd3 {[%clk 01:31:34]}
{[%emt 00:00:28]} h6 {[%clk 01:24:52]} {[%emt 00:04:48]} 8. Bh4 {[%clk
01:25:07]} {[%emt 00:06:56]} Ne4 {[%clk 01:15:30]} {[%emt 00:09:52]} 9. Bxe7
{[%clk 01:18:47]} {[%emt 00:06:50]} Nxc3 {[%clk 01:12:30]} {[%emt 00:03:31]} 10.
Qc2 {[%clk 01:01:18]} {[%emt 00:17:59]} Qxe7 {[%clk 01:12:33]} {[%emt
00:00:27]} 11. Qxc3 {[%clk 01:01:33]} {[%emt 00:00:16]} a5 {[%clk 01:05:15]}
{[%emt 00:07:47]} 12. a3 {[%clk 00:58:44]} {[%emt 00:03:19]} Be6 {[%clk
00:50:21]} {[%emt 00:15:24]} 13. Ne2 {[%clk 00:54:13]} {[%emt 00:05:00]} Nd7
{[%clk 00:47:54]} {[%emt 00:02:57]} 14. O-O {[%clk 00:54:16]} {[%emt 00:00:27]}
O-O {[%clk 00:48:06]} {[%emt 00:00:18]} 15. Rae1 {[%clk 00:46:55]} {[%emt
00:07:51]} Rfc8 {[%clk 00:41:48]} {[%emt 00:06:48]} 16. Nf4 {[%clk 00:44:05]}
{[%emt 00:03:20]} Nf6 {[%clk 00:33:25]} {[%emt 00:08:53]} 17. e4 {[%clk
00:38:07]} {[%emt 00:06:29]} dxe4 {[%clk 00:29:04]} {[%emt 00:04:51]} 18. Bxe4
{[%clk 00:38:05]} {[%emt 00:00:32]} Qd6 {[%clk 00:23:36]} {[%emt 00:05:57]} 19.
Nxe6 {[%clk 00:37:58]} {[%emt 00:00:37]} fxe6 {[%clk 00:23:44]} {[%emt
00:00:22]} 20. Bb1 {[%clk 00:34:59]} {[%emt 00:03:29]} Rd8 {[%clk 00:20:40]}
{[%emt 00:03:34]} 21. Rd1 {[%clk 00:19:16]} {[%emt 00:16:13]} Rf8 {[%clk
00:16:13]} {[%emt 00:04:57]} 22. h3 {[%clk 00:19:01]} {[%emt 00:00:45]} b6
{[%clk 00:15:43]} {[%emt 00:00:59]} 23. Rfe1 {[%clk 00:18:31]} {[%emt
00:01:00]} Rad8 {[%clk 00:09:58]} {[%emt 00:06:15]} 24. Qc2 {[%clk 00:07:53]}
{[%emt 00:11:08]} c5 {[%clk 00:05:56]} {[%emt 00:04:33]} 25. Ba2 {[%clk
00:05:37]} {[%emt 00:02:46]} Nd5 {[%clk 00:04:15]} {[%emt 00:02:10]} 26. dxc5
{[%clk 00:05:55]} {[%emt 00:00:13]} bxc5 {[%clk 00:04:26]} {[%emt 00:00:19]} 27.
Re4 {[%clk 00:01:13]} {[%emt 00:05:11]} Rf6 {[%clk 00:01:07]} {[%emt 00:03:50]}
28. Bb1 {[%clk 00:00:55]} {[%emt 00:00:48]} Rdf8 {[%clk 00:00:38]} {[%emt
00:00:59]} 29. Rg4 {[%clk 00:01:04]} {[%emt 00:00:21]} R8f7 {[%clk 00:00:37]}
{[%emt 00:00:32]} 30. Qh7+ {[%clk 00:00:57]} {[%emt 00:00:37]} Kf8 {[%clk
00:00:59]} {[%emt 00:00:07]} 31. Bg6 {[%clk 00:00:55]} {[%emt 00:00:31]} Rxg6
{[%clk 00:00:38]} {[%emt 00:00:51]} 32. Rxg6 {[%clk 00:00:38]} {[%emt
00:00:48]} Qf4 {[%clk 00:00:55]} {[%emt 00:00:13]} 33. Qh8+ {[%clk 00:00:48]}
{[%emt 00:00:21]} Ke7 {[%clk 00:01:16]} {[%emt 00:00:08]} 34. Rxg7 {[%clk
00:00:45]} {[%emt 00:00:33]} Qxf2+ {[%clk 00:00:48]} {[%emt 00:00:57]} 35. Kh1
{[%clk 00:01:10]} {[%emt 00:00:06]} Rxg7 {[%clk 00:00:34]} {[%emt 00:00:44]} 36.
Qxg7+ {[%clk 00:01:37]} {[%emt 00:00:02]} Kd6 {[%clk 00:01:03]} {[%emt
00:00:02]} 37. Qxh6 {[%clk 00:01:15]} {[%emt 00:00:52]} Qxb2 {[%clk 00:01:16]}
{[%emt 00:00:17]} 38. Qf8+ {[%clk 00:01:26]} {[%emt 00:00:18]} Kc6 {[%clk
00:01:21]} {[%emt 00:00:25]} 39. Qe8+ {[%clk 00:00:57]} {[%emt 00:00:59]} Kd6
{[%clk 00:01:38]} {[%emt 00:00:13]} 40. Qd8+ {[%clk 00:01:10]} {[%emt
00:00:17]} Kc6 {[%clk 00:00:36]} {[%emt 00:01:33]} 41. Qc8+ {[%clk 00:00:49]}
{[%emt 00:00:50]} Nc7 {[%clk 00:00:32]} {[%emt 00:00:34]} 42. Qd7+ {[%clk
00:00:51]} {[%emt 00:00:28]} Kb7 {[%clk 00:00:34]} {[%emt 00:00:28]} 43. Qd3
{[%clk 00:00:44]} {[%emt 00:00:37]} Kc6 {[%clk 00:00:33]} {[%emt 00:00:32]} 44.
Qe4+ {[%clk 00:01:00]} {[%emt 00:00:14]} 1-0

[Event "The Elitserien 2024/25: round 1 - 3"]
[Site "Scandic Infra City, Kanalvagen 10, Upplands Vasby, Sweden"]
[Date "2024.10.04"]
[Round "1.15"]
[White "Krantz, Christopher"]
[Black "Bellon Lopez, Juan Manuel"]
[Result "0-1"]
[TimeControl "90 minutes for 40 moves + 30 minutes for the rest of the game + 30 seconds per move from move one."]
[BlackTitle "GM"]
[WhiteFideId "1707876"]
[BlackFideId "2200031"]
[WhiteElo "2225"]
[BlackElo "2266"]

1. d4 {[%clk 01:30:26]} {[%emt 00:00:33]} Nf6 {[%clk 01:30:31]} {[%emt
00:00:30]} 2. Nf3 {[%clk 01:30:47]} {[%emt 00:00:08]} c5 {[%clk 01:30:50]}
{[%emt 00:00:12]} 3. c3 {[%clk 01:30:37]} {[%emt 00:00:39]} b6 {[%clk
01:29:51]} {[%emt 00:01:29]} 4. Bg5 {[%clk 01:29:28]} {[%emt 00:01:40]} Bb7
{[%clk 01:29:46]} {[%emt 00:00:34]} 5. e3 {[%clk 01:27:18]} {[%emt 00:02:41]}
e6 {[%clk 01:26:40]} {[%emt 00:03:37]} 6. Nbd2 {[%clk 01:27:30]} {[%emt
00:00:17]} Be7 {[%clk 01:25:55]} {[%emt 00:01:15]} 7. Bd3 {[%clk 01:27:05]}
{[%emt 00:00:56]} h6 {[%clk 01:25:56]} {[%emt 00:00:30]} 8. Bh4 {[%clk
01:19:52]} {[%emt 00:07:43]} d6 {[%clk 01:18:57]} {[%emt 00:07:28]} 9. O-O
{[%clk 01:15:06]} {[%emt 00:05:17]} Nbd7 {[%clk 01:05:23]} {[%emt 00:14:04]} 10.
e4 {[%clk 01:07:14]} {[%emt 00:08:21]} O-O {[%clk 00:54:54]} {[%emt 00:11:00]}
11. Re1 {[%clk 01:02:30]} {[%emt 00:05:13]} g5 {[%clk 00:51:17]} {[%emt
00:04:08]} 12. Bg3 {[%clk 00:58:02]} {[%emt 00:04:58]} Nh5 {[%clk 00:44:58]}
{[%emt 00:06:49]} 13. Nc4 {[%clk 00:37:50]} {[%emt 00:20:42]} Nxg3 {[%clk
00:43:08]} {[%emt 00:02:20]} 14. hxg3 {[%clk 00:36:26]} {[%emt 00:01:52]} cxd4
{[%clk 00:38:20]} {[%emt 00:05:19]} 15. cxd4 {[%clk 00:35:38]} {[%emt
00:01:18]} Rc8 {[%clk 00:32:59]} {[%emt 00:05:51]} 16. Qe2 {[%clk 00:30:00]}
{[%emt 00:06:09]} d5 {[%clk 00:27:56]} {[%emt 00:05:32]} 17. exd5 {[%clk
00:25:43]} {[%emt 00:04:47]} Bxd5 {[%clk 00:28:21]} {[%emt 00:00:05]} 18. Ne3
{[%clk 00:23:45]} {[%emt 00:02:28]} Nf6 {[%clk 00:26:05]} {[%emt 00:02:47]} 19.
Nxd5 {[%clk 00:19:37]} {[%emt 00:04:38]} Qxd5 {[%clk 00:24:28]} {[%emt
00:02:07]} 20. a3 {[%clk 00:19:39]} {[%emt 00:00:26]} Kg7 {[%clk 00:22:20]}
{[%emt 00:02:39]} 21. Rad1 {[%clk 00:19:28]} {[%emt 00:00:41]} Rc7 {[%clk
00:20:10]} {[%emt 00:02:40]} 22. Bb1 {[%clk 00:16:41]} {[%emt 00:03:17]} b5
{[%clk 00:14:18]} {[%emt 00:06:23]} 23. Qd2 {[%clk 00:11:53]} {[%emt 00:05:17]}
Nd7 {[%clk 00:13:37]} {[%emt 00:01:11]} 24. Qd3 {[%clk 00:09:51]} {[%emt
00:02:31]} Rh8 {[%clk 00:14:05]} {[%emt 00:00:04]} 25. Rc1 {[%clk 00:08:47]}
{[%emt 00:01:34]} Rxc1 {[%clk 00:13:24]} {[%emt 00:01:11]} 26. Rxc1 {[%clk
00:09:14]} {[%emt 00:00:02]} Bf6 {[%clk 00:12:03]} {[%emt 00:01:52]} 27. g4
{[%clk 00:08:00]} {[%emt 00:01:44]} h5 {[%clk 00:10:32]} {[%emt 00:02:01]} 28.
gxh5 {[%clk 00:06:34]} {[%emt 00:01:56]} g4 {[%clk 00:08:11]} {[%emt 00:02:51]}
29. Ne5 {[%clk 00:03:20]} {[%emt 00:03:44]} Nxe5 {[%clk 00:07:00]} {[%emt
00:01:41]} 30. dxe5 {[%clk 00:03:40]} {[%emt 00:00:10]} Qxe5 {[%emt 00:00:44]}
31. Rc6 {[%clk 00:01:43]} {[%emt 00:02:25]} Rxh5 {[%clk 00:05:50]} {[%emt
00:01:28]} 32. Rc1 {[%clk 00:01:39]} {[%emt 00:00:33]} Qh2+ {[%clk 00:05:41]}
{[%emt 00:00:40]} 0-1

[Event "The Elitserien 2024/25: round 1 - 3"]
[Site "Scandic Infra City, Kanalvagen 10, Upplands Vasby, Sweden"]
[Date "2024.10.04"]
[Round "1.16"]
[White "Cramling, Dan"]
[Black "Thornert, Hakan"]
[Result "1-0"]
[TimeControl "90 minutes for 40 moves + 30 minutes for the rest of the game + 30 seconds per move from move one."]
[WhiteTitle "IM"]
[WhiteFideId "1700162"]
[BlackFideId "1703749"]
[WhiteElo "2317"]
[BlackElo "2163"]

1. d4 {[%clk 01:16:58]} {[%emt 00:14:32]} Nf6 {[%clk 01:31:15]} {[%emt
00:00:15]} 2. c4 {[%clk 01:17:19]} {[%emt 00:00:10]} g6 {[%clk 01:31:41]}
{[%emt 00:00:04]} 3. Nc3 {[%clk 01:17:41]} {[%emt 00:00:08]} d5 {[%clk
01:32:04]} {[%emt 00:00:07]} 4. cxd5 {[%clk 01:17:56]} {[%emt 00:00:14]} Nxd5
{[%clk 01:32:29]} {[%emt 00:00:06]} 5. e4 {[%clk 01:18:08]} {[%emt 00:00:17]}
Nxc3 {[%emt 00:00:06]} 6. bxc3 {[%emt 00:00:05]} Bg7 {[%clk 01:32:41]} {[%emt
00:00:07]} 7. Qa4+ {[%clk 01:18:26]} {[%emt 00:00:12]} Nd7 {[%clk 01:32:36]}
{[%emt 00:00:36]} 8. Nf3 {[%clk 01:18:34]} {[%emt 00:00:20]} O-O {[%clk
01:32:06]} {[%emt 00:01:03]} 9. Bg5 {[%clk 01:17:50]} {[%emt 00:01:13]} c5
{[%clk 01:31:37]} {[%emt 00:01:00]} 10. Rc1 {[%clk 01:16:23]} {[%emt 00:01:56]}
cxd4 {[%clk 01:19:08]} {[%emt 00:12:59]} 11. cxd4 {[%clk 01:15:01]} {[%emt
00:02:03]} Nf6 {[%clk 01:18:15]} {[%emt 00:01:13]} 12. Bd3 {[%clk 01:07:45]}
{[%emt 00:07:44]} b6 {[%clk 01:00:27]} {[%emt 00:18:19]} 13. O-O {[%clk
00:57:44]} {[%emt 00:10:31]} Bb7 {[%clk 01:00:23]} {[%emt 00:00:34]} 14. d5
{[%clk 00:50:00]} {[%emt 00:08:14]} a6 {[%clk 00:58:26]} {[%emt 00:02:28]} 15.
Rfd1 {[%clk 00:36:36]} {[%emt 00:13:54]} Re8 {[%clk 00:51:11]} {[%emt
00:07:44]} 16. Bf4 {[%clk 00:26:51]} {[%emt 00:10:16]} Rc8 {[%clk 00:38:31]}
{[%emt 00:13:10]} 17. Rxc8 {[%clk 00:24:40]} {[%emt 00:02:40]} Qxc8 {[%clk
00:38:36]} {[%emt 00:00:25]} 18. Rc1 {[%clk 00:23:58]} {[%emt 00:01:13]} Qd7
{[%clk 00:38:31]} {[%emt 00:00:32]} 19. Qb3 {[%clk 00:21:51]} {[%emt 00:02:39]}
Nh5 {[%clk 00:32:50]} {[%emt 00:06:11]} 20. Rc7 {[%clk 00:15:40]} {[%emt
00:06:42]} Qd8 {[%clk 00:31:29]} {[%emt 00:01:50]} 21. Rxb7 {[%clk 00:15:31]}
{[%emt 00:00:39]} Nxf4 {[%clk 00:31:50]} {[%emt 00:00:09]} 22. Bxa6 {[%clk
00:15:34]} {[%emt 00:00:27]} Qc8 {[%clk 00:31:01]} {[%emt 00:01:16]} 23. h3
{[%clk 00:12:41]} {[%emt 00:03:26]} Ne2+ {[%clk 00:25:39]} {[%emt 00:05:52]} 24.
Kh2 {[%emt 00:09:06]} Nd4 {[%clk 00:23:24]} {[%emt 00:02:37]} 25. Qxb6 {[%clk
00:02:36]} {[%emt 00:02:08]} Nxf3+ {[%clk 00:23:21]} {[%emt 00:00:32]} 26. gxf3
{[%clk 00:03:00]} {[%emt 00:00:06]} Be5+ {[%clk 00:22:02]} {[%emt 00:01:49]} 27.
Kg2 {[%emt 00:00:21]} Qc1 {[%clk 00:06:24]} {[%emt 00:16:04]} 28. Qe3 {[%clk
00:02:24]} {[%emt 00:01:17]} Qxe3 {[%clk 00:06:33]} {[%emt 00:00:23]} 29. fxe3
{[%clk 00:02:47]} {[%emt 00:00:07]} Bd6 {[%clk 00:06:58]} {[%emt 00:00:04]} 30.
f4 {[%clk 00:02:03]} {[%emt 00:01:15]} f6 {[%clk 00:07:24]} {[%emt 00:00:05]}
31. Kf3 {[%clk 00:02:04]} {[%emt 00:00:28]} Kf8 {[%clk 00:07:42]} {[%emt
00:00:12]} 32. a4 {[%clk 00:02:09]} {[%emt 00:00:26]} Ra8 {[%clk 00:07:56]}
{[%emt 00:00:15]} 33. Bb5 {[%clk 00:02:17]} {[%emt 00:00:21]} Ra5 {[%clk
00:06:56]} {[%emt 00:01:32]} 34. Ke2 {[%clk 00:02:17]} {[%emt 00:00:28]} Ra8
{[%clk 00:06:43]} {[%emt 00:00:44]} 35. h4 {[%clk 00:02:02]} {[%emt 00:00:45]}
h6 {[%clk 00:07:02]} {[%emt 00:00:11]} 36. Bc6 {[%clk 00:01:34]} {[%emt
00:00:57]} Ra5 {[%clk 00:06:44]} {[%emt 00:00:48]} 37. Bb5 {[%clk 00:01:31]}
{[%emt 00:00:34]} Ra8 {[%clk 00:07:02]} {[%emt 00:00:12]} 38. Kf3 {[%clk
00:01:55]} {[%emt 00:00:06]} Ra5 {[%clk 00:07:23]} {[%emt 00:00:09]} 39. Kg4
{[%clk 00:02:01]} {[%emt 00:00:24]} Ra8 {[%clk 00:05:45]} {[%emt 00:02:08]} 40.
h5 {[%clk 00:01:11]} {[%emt 00:01:20]} gxh5+ {[%clk 00:01:52]} {[%emt
00:04:23]} 41. Kf5 {[%clk 00:00:46]} {[%emt 00:00:55]} Rb8 {[%clk 00:29:21]}
{[%emt 00:03:00]} 42. Rxb8+ {[%clk 00:18:50]} {[%emt 00:12:28]} Bxb8 {[%clk
00:29:31]} {[%emt 00:00:20]} 43. a5 {[%clk 00:19:06]} {[%emt 00:00:13]} Ba7
{[%clk 00:28:55]} {[%emt 00:01:06]} 44. Ke6 {[%clk 00:16:31]} {[%emt 00:03:05]}
h4 {[%clk 00:20:59]} {[%emt 00:08:26]} 45. e5 {[%clk 00:12:59]} {[%emt
00:04:03]} fxe5 {[%clk 00:20:41]} {[%emt 00:00:47]} 46. fxe5 {[%clk 00:13:17]}
{[%emt 00:00:12]} h3 {[%clk 00:18:30]} {[%emt 00:02:40]} 47. d6 {[%clk
00:13:00]} {[%emt 00:00:48]} exd6 {[%clk 00:18:28]} {[%emt 00:00:32]} 48. exd6
{[%clk 00:13:19]} {[%emt 00:00:11]} h2 {[%clk 00:18:22]} {[%emt 00:00:36]} 49.
d7 {[%clk 00:12:16]} {[%emt 00:01:33]} h1=Q {[%clk 00:17:58]} {[%emt 00:00:51]}
50. d8=Q+ {[%clk 00:12:36]} {[%emt 00:00:12]} Kg7 {[%clk 00:18:12]} {[%emt
00:00:17]} 51. Qf6+ {[%clk 00:12:52]} {[%emt 00:00:11]} Kg8 {[%clk 00:18:19]}
{[%emt 00:00:24]} 52. Qf7+ {[%clk 00:13:09]} {[%emt 00:00:12]} Kh8 {[%clk
00:18:45]} {[%emt 00:00:07]} 53. Qf8+ {[%clk 00:13:27]} {[%emt 00:00:11]} 1-0

[Event "The Elitserien 2024/25: round 1 - 3"]
[Site "Scandic Infra City, Kanalvagen 10, Upplands Vasby, Sweden"]
[Date "2024.10.04"]
[Round "1.17"]
[White "Cicak, Slavko"]
[Black "Kucuksari, Kaan"]
[Result "1/2-1/2"]
[TimeControl "90 minutes for 40 moves + 30 minutes for the rest of the game + 30 seconds per move from move one."]
[WhiteTitle "GM"]
[BlackTitle "IM"]
[WhiteFideId "1700588"]
[BlackFideId "6380166"]
[WhiteElo "2499"]
[BlackElo "2455"]

1. Nf3 {[%clk 01:30:42]} {[%emt 00:00:17]} Nf6 {[%clk 01:30:48]} {[%emt
00:00:14]} 2. c4 {[%clk 01:30:08]} {[%emt 00:01:04]} b6 {[%clk 01:31:10]}
{[%emt 00:00:07]} 3. d3 {[%clk 01:30:00]} {[%emt 00:00:38]} Bb7 {[%clk
01:30:32]} {[%emt 00:01:09]} 4. e4 {[%clk 01:30:10]} {[%emt 00:00:19]} d6
{[%clk 01:30:47]} {[%emt 00:00:16]} 5. g3 {[%clk 01:29:58]} {[%emt 00:00:42]}
g6 {[%clk 01:31:03]} {[%emt 00:00:15]} 6. Bg2 {[%clk 01:30:21]} {[%emt
00:00:06]} Bg7 {[%clk 01:31:27]} {[%emt 00:00:06]} 7. O-O {[%clk 01:30:45]}
{[%emt 00:00:06]} Nbd7 {[%clk 01:31:39]} {[%emt 00:00:18]} 8. Nc3 {[%clk
01:30:48]} {[%emt 00:00:26]} O-O {[%clk 01:31:46]} {[%emt 00:00:24]} 9. Ng5
{[%clk 01:26:51]} {[%emt 00:04:26]} e5 {[%clk 01:27:26]} {[%emt 00:04:51]} 10.
f4 {[%clk 01:25:24]} {[%emt 00:01:56]} c6 {[%clk 01:23:33]} {[%emt 00:04:24]}
11. f5 {[%clk 01:19:36]} {[%emt 00:06:18]} b5 {[%clk 01:23:39]} {[%emt
00:00:24]} 12. Be3 {[%clk 01:11:29]} {[%emt 00:08:52]} b4 {[%clk 01:21:53]}
{[%emt 00:02:02]} 13. Na4 {[%clk 01:09:56]} {[%emt 00:02:02]} c5 {[%clk
01:20:56]} {[%emt 00:01:27]} 14. b3 {[%clk 01:06:47]} {[%emt 00:03:40]} Nb8
{[%clk 01:20:41]} {[%emt 00:00:45]} 15. h3 {[%clk 00:59:36]} {[%emt 00:07:39]}
Nc6 {[%clk 01:20:51]} {[%emt 00:00:22]} 16. g4 {[%clk 00:59:37]} {[%emt
00:00:27]} Nd4 {[%clk 01:19:44]} {[%emt 00:01:38]} 17. Nf3 {[%clk 00:58:16]}
{[%emt 00:01:49]} Nd7 {[%clk 01:15:37]} {[%emt 00:04:38]} 18. Qd2 {[%clk
00:55:55]} {[%emt 00:02:51]} gxf5 {[%clk 01:14:36]} {[%emt 00:01:31]} 19. gxf5
{[%clk 00:50:56]} {[%emt 00:05:29]} Kh8 {[%clk 01:12:20]} {[%emt 00:02:46]} 20.
Kh2 {[%clk 00:48:29]} {[%emt 00:02:57]} Rg8 {[%clk 01:11:46]} {[%emt 00:01:04]}
21. Rg1 {[%clk 00:47:39]} {[%emt 00:01:19]} Bf6 {[%clk 01:11:39]} {[%emt
00:00:38]} 22. Bh1 {[%clk 00:47:22]} {[%emt 00:00:46]} Qe7 {[%clk 01:10:50]}
{[%emt 00:01:20]} 23. Nb2 {[%clk 00:43:28]} {[%emt 00:04:23]} Nb6 {[%clk
01:04:49]} {[%emt 00:06:32]} 24. Raf1 {[%clk 00:37:29]} {[%emt 00:06:28]} a5
{[%clk 01:05:09]} {[%emt 00:00:12]} 25. Bh6 {[%clk 00:37:04]} {[%emt 00:00:54]}
Bc6 {[%clk 01:03:36]} {[%emt 00:02:04]} 26. Nd1 {[%clk 00:30:43]} {[%emt
00:06:50]} a4 {[%clk 01:03:28]} {[%emt 00:00:38]} 27. bxa4 {[%clk 00:26:31]}
{[%emt 00:04:41]} Nxa4 {[%clk 00:53:14]} {[%emt 00:10:45]} 28. Rxg8+ {[%clk
00:17:47]} {[%emt 00:09:13]} Rxg8 {[%clk 00:53:21]} {[%emt 00:00:22]} 29. Rg1
{[%clk 00:14:49]} {[%emt 00:03:30]} Rxg1 {[%clk 00:30:18]} {[%emt 00:23:32]} 30.
Nxg1 {[%clk 00:15:08]} {[%emt 00:00:11]} Bh4 {[%clk 00:27:18]} {[%emt
00:03:30]} 31. Nf3 {[%clk 00:13:32]} {[%emt 00:02:07]} Nxf3+ {[%clk 00:19:12]}
{[%emt 00:08:36]} 32. Bxf3 {[%clk 00:13:55]} {[%emt 00:00:06]} Qf6 {[%clk
00:19:22]} {[%emt 00:00:21]} 33. Kg2 {[%clk 00:12:51]} {[%emt 00:01:34]} Qd8
{[%clk 00:18:11]} {[%emt 00:01:42]} 34. Nf2 {[%clk 00:12:03]} {[%emt 00:01:17]}
Nc3 {[%clk 00:14:15]} {[%emt 00:04:26]} 35. Ng4 {[%clk 00:12:10]} {[%emt
00:00:24]} Qg8 {[%clk 00:13:03]} {[%emt 00:01:43]} 36. Kh1 {[%clk 00:11:13]}
{[%emt 00:01:26]} f6 {[%clk 00:12:47]} {[%emt 00:00:46]} 37. Bd1 {[%clk
00:09:16]} {[%emt 00:02:27]} Be8 {[%clk 00:07:52]} {[%emt 00:05:25]} 38. Bf3
{[%emt 00:03:58]} Bg5 {[%clk 00:07:23]} {[%emt 00:00:57]} 39. Qf2 {[%clk
00:04:20]} {[%emt 00:01:59]} Bxh6 {[%clk 00:05:54]} {[%emt 00:01:59]} 40. Nxh6
{[%clk 00:04:27]} {[%emt 00:00:24]} Qg5 {[%clk 00:06:14]} {[%emt 00:00:10]} 41.
Ng4 {[%clk 00:04:50]} {[%emt 00:00:07]} h5 {[%clk 00:25:52]} {[%emt 00:10:52]}
42. Ne3 {[%clk 00:21:40]} {[%emt 00:13:39]} Nxa2 {[%clk 00:19:19]} {[%emt
00:07:05]} 43. h4 {[%clk 00:19:12]} {[%emt 00:02:56]} Qh6 {[%clk 00:19:41]}
{[%emt 00:00:08]} 44. Qxa2 {[%clk 00:17:07]} {[%emt 00:02:37]} Qxe3 {[%clk
00:20:04]} {[%emt 00:00:06]} 45. Kg2 {[%clk 00:17:28]} {[%emt 00:00:09]} Qxd3
{[%clk 00:08:40]} {[%emt 00:11:55]} 46. Qa8 {[%clk 00:17:31]} {[%emt 00:00:27]}
Qc2+ {[%clk 00:09:01]} {[%emt 00:00:09]} 47. Kh3 {[%clk 00:17:20]} {[%emt
00:00:41]} Qa4 {[%clk 00:09:22]} {[%emt 00:00:09]} 48. Qd8 {[%clk 00:17:32]}
{[%emt 00:00:16]} Kg7 {[%clk 00:09:18]} {[%emt 00:00:36]} 49. Qe7+ {[%clk
00:17:44]} {[%emt 00:00:17]} Bf7 {[%clk 00:09:44]} {[%emt 00:00:04]} 50. Bxh5
{[%clk 00:15:56]} {[%emt 00:02:19]} Qb3+ {[%clk 00:10:11]} {[%emt 00:00:04]} 51.
Kh2 {[%clk 00:16:08]} {[%emt 00:00:18]} Qxc4 {[%clk 00:05:38]} {[%emt
00:05:03]} 52. Bg6 {[%clk 00:16:15]} {[%emt 00:00:22]} b3 {[%clk 00:03:14]}
{[%emt 00:02:55]} 53. h5 {[%clk 00:16:38]} {[%emt 00:00:06]} b2 {[%clk
00:02:41]} {[%emt 00:01:04]} 54. h6+ {[%clk 00:14:22]} {[%emt 00:03:23]} Kxh6
{[%clk 00:03:04]} {[%emt 00:00:07]} 55. Qxf6 {[%clk 00:15:06]} {[%emt
00:00:14]} Qe2+ {[%clk 00:01:38]} {[%emt 00:01:58]} 56. Kh3 {[%clk 00:12:12]}
{[%emt 00:03:24]} Qf1+ {[%clk 00:01:55]} {[%emt 00:00:14]} 57. Kh2 {[%clk
00:12:18]} {[%emt 00:00:22]} Qf4+ {[%clk 00:01:48]} {[%emt 00:00:37]} 58. Kh3
{[%clk 00:12:33]} {[%emt 00:00:14]} Qf3+ {[%clk 00:00:59]} {[%emt 00:01:20]} 59.
Kh2 {[%clk 00:12:58]} {[%emt 00:00:06]} Qe2+ {[%clk 00:00:58]} {[%emt
00:00:30]} 60. Kh3 {[%clk 00:13:13]} {[%emt 00:00:16]} Qd3+ {[%clk 00:01:08]}
{[%emt 00:00:19]} 61. Kh2 {[%clk 00:13:19]} {[%emt 00:00:25]} Qd2+ {[%clk
00:01:27]} {[%emt 00:00:12]} 62. Kh3 {[%clk 00:13:32]} {[%emt 00:00:16]} Qd3+
{[%clk 00:00:56]} {[%emt 00:01:01]} 63. Kh2 {[%clk 00:13:29]} {[%emt 00:00:33]}
Qd2+ {[%clk 00:00:53]} {[%emt 00:00:33]} 64. Kh3 {[%clk 00:13:12]} {[%emt
00:00:46]} Qe3+ {[%clk 00:01:12]} {[%emt 00:00:10]} 65. Kh2 {[%clk 00:13:18]}
{[%emt 00:00:25]} Qe2+ {[%clk 00:00:49]} {[%emt 00:00:53]} 1/2-1/2